bitfinex/quotes_SOLUSD_20250929
["timestamp","ask_amount","ask_price","bid_price","bid_amount"]
[1759137689687,0.72,208.96,208.92,36.72]
[1759137691193,0.72,208.96,208.93,4.78629205]
[1759137694479,0.72,208.99,208.94,0.2]
[1759137694674,0.72,208.99,208.95,36.72]
[1759137696004,0.72,208.99,208.96,4.7856049]
[1759137700885,26.72,209.01,208.96,4.7856049]
[1759137701092,0.72,209.0,208.96,4.7856049]
[1759137701493,26.0,209.01,208.97,0.2]
[1759137701801,26.72,209.03,208.98,36.72]
[1759137701996,0.72,209.02,208.98,36.72]
[1759137702500,26.72,209.04,208.99,4.78491793]
[1759137702678,0.72,209.03,208.99,16.74721277]
[1759137703096,26.0,209.03,208.99,16.94721277]
[1759137703302,26.72,209.03,208.99,16.74721277]
[1759137703478,0.72,209.02,208.99,16.74721277]
[1759137704404,26.0,209.03,208.99,16.74721277]
[1759137704612,0.72,209.04,208.99,16.94721277]
[1759137705076,0.72,209.04,209.0,0.2]
[1759137705284,26.0,209.05,209.01,36.72]
[1759137705285,26.72,209.05,209.01,36.72]
[1759137705802,26.0,209.06,209.01,36.72]
[1759137705978,3.22150754,209.08,209.01,36.92]
[1759137706316,26.72,209.08,209.01,36.92]
[1759137706477,0.72,209.08,209.02,16.7448091]
[1759137706875,26.72,209.08,209.02,16.7448091]
[1759137707288,0.72,209.08,209.02,16.7448091]
[1759137707483,0.72,209.07,209.02,16.7448091]
[1759137707689,0.72,209.06,209.02,16.7448091]
[1759137708404,0.72,209.07,209.02,16.9448091]
[1759137709203,0.72,209.06,209.02,16.7448091]
[1759137709507,0.72,209.05,209.02,4.78423117]
[1759137709718,0.72,209.04,209.03,36.7]
[1759137710607,0.72,209.06,209.03,41.48378267]
[1759137710817,26.0,209.08,209.03,41.68378267]
[1759137710995,26.0,209.08,209.04,0.2]
[1759137711380,26.66,209.08,209.03,41.48378267]
[1759137711610,26.66,209.08,209.03,41.68378267]
[1759137711800,3.88150754,209.1,209.04,0.2]
[1759137711999,0.66,209.1,209.04,0.2]
[1759137712931,26.0,209.11,209.04,0.2]
[1759137713496,26.66,209.11,209.04,0.2]
[1759137714110,26.66,209.11,209.05,16.74240611]
[1759137714310,0.66,209.1,209.06,36.7]
[1759137714519,0.66,209.09,209.06,36.7]
[1759137715206,0.66,209.09,209.07,4.783087]
[1759137717905,26.0,209.11,209.07,4.783087]
[1759137718214,0.66,209.1,209.07,4.783087]
[1759137718720,0.66,209.09,209.07,4.783087]
[1759137719691,26.66,209.11,209.07,4.783087]
[1759137719896,0.66,209.1,209.07,16.74080451]
[1759137720397,0.66,209.09,209.07,4.783087]
[1759137721009,0.66,209.08,209.05,4.783385]
[1759137721320,28.86270172,209.07,208.96,4.9856049]
[1759137721495,14.25559401,209.06,208.97,36.7]
[1759137721690,0.66,209.05,208.97,36.9]
[1759137721897,0.66,209.04,208.97,36.9]
[1759137722098,0.66,209.03,208.97,36.9]
[1759137722407,0.66,209.03,208.98,4.7851469]
[1759137723228,0.66,209.03,208.98,16.74801416]
[1759137723718,4.78333003,209.06,208.98,16.74801416]
[1759137723918,0.66,209.02,208.98,16.74801416]
[1759137724121,0.66,209.04,208.98,16.94801416]
[1759137724501,28.20270172,209.07,208.99,36.7]
[1759137724807,0.66,209.07,209.0,0.2]
[1759137725606,0.66,209.07,209.01,16.74561025]
[1759137726128,0.66,209.07,209.01,16.94561025]
[1759137729942,0.66,209.09,209.02,0.2]
[1759137730105,0.66,209.1,209.03,36.7]
[1759137730299,0.66,209.1,209.04,0.2]
[1759137732212,0.66,209.1,209.05,36.7]
[1759137732415,0.66,209.09,209.06,36.7]
[1759137732615,0.66,209.08,209.06,36.7]
[1759137732813,0.7,209.07,209.06,36.7]
[1759137733423,0.7,209.07,209.06,41.48331579]
[1759137734398,0.7,209.09,209.06,41.48331579]
[1759137734605,0.7,209.08,209.06,41.48331579]
[1759137736833,0.7,209.07,209.06,41.48331579]
[1759137737530,4.78221959,209.11,209.06,41.48331579]
[1759137737730,0.7,209.1,209.06,41.48331579]
[1759137737918,0.7,209.09,209.06,41.48331579]
[1759137738114,4.78221959,209.11,209.06,41.48331579]
[1759137738325,0.7,209.1,209.06,41.48331579]
[1759137738505,0.7,209.09,209.06,41.48331579]
[1759137738811,0.7,209.08,209.06,41.48331579]
[1759137742958,0.7,209.08,209.07,36.7]
[1759137744043,34.00138562,209.12,209.07,36.7]
[1759137744332,0.68,209.1,209.07,36.7]
[1759137744835,0.68,209.09,209.07,36.7]
[1759137745334,0.68,209.11,209.07,41.48286585]
[1759137745536,0.68,209.1,209.07,41.48286585]
[1759137746332,29.21940444,209.12,209.07,41.48286585]
[1759137746549,0.68,209.09,209.07,41.48286585]
[1759137746718,34.00135549,209.12,209.07,41.48286585]
[1759137746924,0.68,209.08,209.07,41.48286585]
[1759137747133,0.68,209.08,209.07,36.7]
[1759137748339,0.68,209.08,209.07,41.483087]
[1759137749328,26.0,209.1,209.07,41.483087]
[1759137750043,26.68,209.1,209.07,41.483087]
[1759137750466,26.0,209.1,209.07,41.483087]
[1759137750643,26.68,209.09,209.07,41.483087]
[1759137750830,26.68,209.09,209.07,4.783087]
[1759137751029,26.68,209.09,209.08,36.7]
[1759137751230,26.68,209.09,209.07,4.783087]
[1759137751534,26.68,209.09,209.08,36.7]
[1759137753065,0.68,209.09,209.08,36.7]
[1759137753364,29.90698632,209.09,209.08,36.7]
[1759137753527,26.68,209.09,209.08,36.7]
[1759137753927,29.90698632,209.09,209.08,36.7]
[1759137754129,26.68,209.09,209.08,36.7]
[1759137754347,29.90698632,209.09,209.08,36.7]
[1759137754542,26.68,209.09,209.08,36.7]
[1759137755549,26.0,209.09,209.08,36.7]
[1759137755944,26.68,209.09,209.08,36.7]
[1759137759641,0.68,209.09,209.08,36.7]
[1759137760027,3.90826817,209.09,209.08,36.7]
[1759137760232,29.90826817,209.09,209.08,36.7]
[1759137761053,34.69102296,209.09,209.04,4.78358288]
[1759137761257,3.90826817,209.08,209.05,36.7]
[1759137761443,0.68,209.07,209.06,36.68]
[1759137763758,26.68,209.09,209.06,36.68]
[1759137763936,0.68,209.08,209.06,36.68]
[1759137764251,0.68,209.07,209.06,36.68]
[1759137765559,0.68,209.07,209.03,4.78394985]
[1759137765748,0.68,209.06,209.04,36.7]
[1759137766058,0.68,209.05,209.04,36.7]
[1759137766761,0.68,209.07,209.04,41.4837589]
[1759137766942,0.68,209.06,209.04,41.4837589]
[1759137768153,3.90891515,209.08,209.04,41.4837589]
[1759137768358,0.68,209.07,209.04,41.4837589]
[1759137768653,26.0,209.09,209.04,41.4837589]
[1759137768864,0.68,209.08,209.04,41.4837589]
[1759137769238,0.68,209.07,209.04,41.4837589]
[1759137770941,26.0,209.09,209.04,41.4837589]
[1759137771141,3.94016558,209.08,209.04,41.4837589]
[1759137771356,0.71,209.07,209.04,41.4837589]
[1759137775342,0.71,209.06,209.04,36.7]
[1759137775548,0.71,209.05,209.04,41.48370384]
[1759137775960,26.0,209.09,209.04,41.48370384]
[1759137776156,0.71,209.07,209.04,41.48370384]
[1759137776668,0.71,209.06,209.04,41.48370384]
[1759137777045,0.71,209.05,209.04,41.48370384]
[1759137777251,0.71,209.07,209.04,41.46370384]
[1759137777450,30.78263881,209.09,209.04,41.46370384]
[1759137777451,0.71,209.06,209.04,41.46370384]
[1759137777865,0.71,209.06,209.04,4.78370384]
[1759137778054,0.71,209.06,209.05,36.68]
[1759137780456,26.71,209.06,208.97,16.74881561]
[1759137780656,3.94014045,209.05,208.97,16.74881561]
[1759137780870,26.0,209.02,208.98,36.68]
[1759137781062,0.71,209.01,208.98,36.68]
[1759137781368,0.71,209.0,208.97,4.78537589]
[1759137781577,0.71,208.99,208.98,36.68]
[1759137781761,0.71,209.0,208.98,36.68]
[1759137783660,30.78426639,209.02,208.98,36.68]
[1759137783856,0.71,208.99,208.98,36.68]
[1759137784056,0.71,208.99,208.96,4.78555808]
[1759137784258,26.0,209.0,208.97,36.68]
[1759137784466,26.71,209.0,208.97,36.68]
[1759137784662,0.71,208.99,208.97,36.68]
[1759137784863,0.71,208.99,208.96,4.78555808]
[1759137785165,0.71,208.99,208.97,36.68]
[1759137785477,0.71,208.98,208.92,4.78652115]
[1759137785676,0.71,208.97,208.93,36.68]
[1759137786058,0.71,208.96,208.9,4.78676948]
[1759137786258,0.71,208.95,208.91,36.7]
[1759137786571,26.71,208.97,208.91,36.9]
[1759137787472,0.71,208.96,208.92,4.78652115]
[1759137787675,0.71,208.95,208.92,4.78652115]
[1759137788081,0.71,208.94,208.91,36.7]
[1759137788376,0.71,208.94,208.91,41.48666187]
[1759137789277,0.71,208.94,208.92,36.7]
[1759137789475,0.71,208.94,208.92,41.48636825]
[1759137790483,0.71,208.95,208.92,41.48636825]
[1759137790675,0.71,208.95,208.92,36.7]
[1759137790873,0.71,208.94,208.92,36.7]
[1759137792379,30.78538516,208.97,208.92,41.48649811]
[1759137792566,0.71,208.95,208.92,41.48649811]
[1759137792966,0.69,208.94,208.92,41.48649811]
[1759137793369,26.0,208.97,208.93,0.2]
[1759137793762,26.0,208.97,208.94,4.78606298]
[1759137793964,26.69,208.97,208.94,4.78606298]
[1759137794690,26.69,208.97,208.95,36.7]
[1759137794976,26.0,208.97,208.95,36.7]
[1759137795157,0.69,208.96,208.95,36.7]
[1759137796285,26.69,208.96,208.95,36.7]
[1759137799183,0.69,208.96,208.95,36.7]
[1759137799384,26.69,208.96,208.95,36.7]
[1759137801995,26.0,208.97,208.95,41.48583393]
[1759137803664,26.7,208.96,208.95,36.7]
[1759137810088,26.0,208.97,208.95,41.48583393]
[1759137810392,26.7,208.97,208.95,41.48583393]
[1759137810576,0.7,208.96,208.95,41.48583393]
[1759137811089,26.0,208.97,208.95,41.48583393]
[1759137811293,26.7,208.97,208.95,41.48583393]
[1759137811765,26.7,208.97,208.95,41.68583393]
[1759137811766,26.0,208.97,208.95,41.68583393]
[1759137811965,26.0,208.99,208.95,41.68583393]
[1759137812374,4.78404379,209.03,208.95,41.48583393]
[1759137812562,0.7,209.02,208.95,53.65041875]
[1759137812765,0.7,209.02,208.96,0.2]
[1759137812986,26.0,209.03,208.97,36.7]
[1759137813188,0.7,209.04,208.98,0.2]
[1759137813370,0.7,209.04,208.99,36.7]
[1759137813572,26.0,209.03,208.99,36.9]
[1759137813887,26.0,209.03,209.0,4.98468899]
[1759137814090,26.0,209.03,209.01,36.7]
[1759137814682,26.0,209.04,209.01,36.7]
[1759137814876,26.0,209.04,209.02,4.78423117]
[1759137815096,0.7,209.03,209.02,4.78423117]
[1759137815272,0.7,209.03,209.02,41.48423117]
[1759137815588,26.0,209.05,209.02,41.48423117]
[1759137815791,0.7,209.04,209.02,41.48423117]
[1759137816099,26.7,209.05,209.02,41.48423117]
[1759137816981,0.7,209.04,209.02,41.48423117]
[1759137817595,0.7,209.06,209.02,41.48423117]
[1759137817774,0.7,209.08,209.02,53.6448091]
[1759137817974,172.39559401,209.09,209.02,53.6448091]
[1759137818175,0.7,209.08,209.02,53.6448091]
[1759137818387,0.7,209.07,209.02,53.6448091]
[1759137822496,26.0,209.09,209.04,4.78377344]
[1759137822680,26.0,209.09,209.05,36.88]
[1759137822881,0.7,209.1,209.05,36.88]
[1759137824386,29.21608572,209.12,209.06,4.78331579]
[1759137824582,0.7,209.09,209.06,4.78331579]
[1759137824991,0.7,209.08,209.06,4.78331579]
[1759137825192,0.7,209.1,209.06,4.78331579]
[1759137826300,29.91608572,209.12,209.06,4.98331579]
[1759137826690,0.7,209.11,209.06,4.78331579]
[1759137827005,0.7,209.1,209.06,4.78331579]
[1759137827898,0.7,209.1,209.06,16.94160527]
[1759137828102,26.7,209.12,209.06,16.74160527]
[1759137828404,26.7,209.12,209.07,0.2]
[1759137828700,0.7,209.11,209.08,36.68]
[1759137828909,0.7,209.1,209.08,36.68]
[1759137829981,0.7,209.1,209.09,4.78262948]
[1759137831003,26.7,209.12,209.09,4.78262948]
[1759137831213,26.0,209.12,209.09,4.98262948]
[1759137831503,26.7,209.12,209.09,4.78262948]
[1759137832007,0.7,209.11,209.09,4.78262948]
[1759137832492,26.0,209.12,209.09,4.78262948]
[1759137832685,0.7,209.11,209.09,4.78262948]
[1759137832885,0.7,209.1,209.09,4.78262948]
[1759137835111,26.0,209.12,209.09,4.78262948]
[1759137835112,26.7,209.12,209.09,4.78262948]
[1759137835310,0.7,209.11,209.09,4.78262948]
[1759137837403,0.7,209.1,209.09,4.78262948]
[1759137838999,26.0,209.12,209.08,41.46281582]
[1759137839199,0.7,209.1,209.08,41.44281582]
[1759137839396,0.7,209.09,209.08,4.78281582]
[1759137839620,0.7,209.09,209.08,41.44281582]
[1759137841718,0.7,209.09,209.08,36.66]
[1759137842106,0.7,209.09,209.04,4.78377344]
[1759137842317,0.7,209.08,209.05,36.66]
[1759137842500,0.7,209.08,209.02,0.2]
[1759137842501,0.7,209.07,209.01,4.78446007]
[1759137842701,0.7,209.06,209.02,36.66]
[1759137842912,0.7,209.05,209.02,36.66]
[1759137843213,0.7,209.04,209.02,36.66]
[1759137844008,0.7,209.04,209.03,4.78400229]
[1759137844210,0.7,209.06,209.03,4.78400229]
[1759137844512,0.7,209.05,209.03,4.78400229]
[1759137846508,0.7,209.05,209.04,36.66]
[1759137846824,26.0,209.06,209.04,36.66]
[1759137847011,26.7,209.06,209.04,36.66]
[1759137847328,26.7,209.06,209.04,41.44357031]
[1759137848937,26.0,209.06,209.04,41.44357031]
[1759137849926,26.0,209.1,209.05,0.2]
[1759137850115,26.0,209.1,209.06,36.66]
[1759137850495,0.7,209.09,209.06,36.66]
[1759137850896,0.7,209.09,209.07,4.783087]
[1759137851202,26.0,209.11,209.07,4.783087]
[1759137851409,26.7,209.1,209.07,4.783087]
[1759137851802,0.7,209.09,209.07,4.783087]
[1759137852622,0.7,209.09,209.08,36.66]
[1759137853131,0.7,209.09,209.08,41.44285823]
[1759137854006,0.7,209.09,209.08,36.66]
[1759137856430,0.7,209.09,209.08,41.44285823]
[1759137861216,0.7,209.09,209.08,36.66]
[1759137861833,0.7,209.09,209.08,41.44285823]
[1759137862246,26.0,209.1,209.08,41.44285823]
[1759137862450,26.0,209.12,209.08,41.44285823]
[1759137862621,0.65,209.1,209.08,41.44285823]
[1759137862938,3.87633295,209.11,209.08,41.44285823]
[1759137863152,0.65,209.1,209.08,41.44285823]
[1759137865123,26.0,209.11,209.08,41.44285823]
[1759137865344,29.22633295,209.11,209.08,41.44285823]
[1759137865730,0.65,209.1,209.08,41.44285823]
[1759137866721,0.65,209.09,209.08,36.66]
[1759137866923,0.65,209.09,209.07,4.78303117]
[1759137867228,0.65,209.09,209.08,36.66]
[1759137867631,0.65,209.09,209.08,41.44285823]
[1759137867850,26.0,209.1,209.08,41.44285823]
[1759137868052,26.65,209.1,209.08,41.44285823]
[1759137868353,0.65,209.09,209.07,4.783072]
[1759137868539,0.65,209.08,209.07,4.783072]
[1759137868743,0.65,209.08,209.07,41.443072]
[1759137871455,3.22856394,209.1,209.07,41.443072]
[1759137871632,0.65,209.11,209.07,41.443072]
[1759137871837,3.87865399,209.1,209.07,41.443072]
[1759137872039,0.65,209.1,209.07,41.443072]
[1759137872241,0.65,209.09,209.07,41.443072]
[1759137873255,3.22872046,209.1,209.07,41.443072]
[1759137873464,3.22864945,209.1,209.07,41.443072]
[1759137873647,26.0,209.12,209.07,41.443072]
[1759137873975,3.87864965,209.11,209.07,41.443072]
[1759137874262,0.65,209.1,209.07,41.443072]
[1759137876859,0.65,209.09,209.07,41.443072]
[1759137877063,0.65,209.09,209.08,36.66]
[1759137877966,0.65,209.09,209.08,41.44285823]
[1759137888249,3.22883453,209.1,209.08,41.44285823]
[1759137888449,0.65,209.1,209.08,41.44285823]
[1759137888968,3.22924106,209.11,209.08,41.44285823]
[1759137889160,0.65,209.11,209.08,41.44285823]
[1759137889358,26.0,209.12,209.08,53.40000382]
[1759137889677,3.22949441,209.11,209.08,53.60000382]
[1759137889870,26.65,209.12,209.08,53.60000382]
[1759137890063,3.22949259,209.11,209.08,53.40000382]
[1759137890271,26.65,209.12,209.08,53.40000382]
[1759137890590,3.22983344,209.11,209.08,53.40000382]
[1759137890753,26.65,209.12,209.08,53.40000382]
[1759137890954,3.22983126,209.11,209.08,53.40000382]
[1759137891176,26.65,209.12,209.08,53.40000382]
[1759137891378,3.22983161,209.11,209.08,53.40000382]
[1759137891559,26.65,209.12,209.08,53.40000382]
[1759137891762,3.2302539,209.11,209.08,53.40000382]
[1759137891966,26.65,209.12,209.08,53.40000382]
[1759137892158,3.23025355,209.11,209.08,53.40000382]
[1759137892477,26.65,209.12,209.08,53.40000382]
[1759137892685,3.23078524,209.11,209.08,53.40000382]
[1759137892971,26.65,209.12,209.08,53.40000382]
[1759137893155,3.23078524,209.11,209.08,53.40000382]
[1759137893359,26.65,209.12,209.08,53.40000382]
[1759137893559,3.23123141,209.11,209.08,53.40000382]
[1759137893759,26.65,209.12,209.08,53.40000382]
[1759137893960,3.23123141,209.11,209.08,53.40000382]
[1759137894272,26.65,209.12,209.08,53.40000382]
[1759137894476,3.2316874,209.11,209.08,53.40000382]
[1759137894773,26.65,209.12,209.08,53.40000382]
[1759137894974,3.23168742,209.11,209.08,53.40000382]
[1759137895177,26.65,209.12,209.08,53.40000382]
[1759137895480,3.23168778,209.11,209.08,53.40000382]
[1759137895772,26.65,209.12,209.08,53.40000382]
[1759137895977,26.0,209.12,209.08,53.60000382]
[1759137896282,26.7,209.12,209.08,53.60000382]
[1759137896466,26.0,209.12,209.08,53.40000382]
[1759137896669,0.2,209.13,209.09,0.2]
[1759137896872,3.23116018,209.12,209.11,4.78217206]
[1759137897473,0.2,209.13,209.11,4.98217206]
[1759137897676,0.2,209.13,209.12,36.84]
[1759137899059,0.2,209.13,209.12,41.62194338]
[1759137899668,0.2,209.15,209.12,53.57680183]
[1759137899985,1e-08,209.15,209.13,1.60845169]
[1759137900169,1e-08,209.15,209.14,36.84]
[1759137900476,1e-08,209.16,209.14,36.84]
[1759137900684,1e-08,209.16,209.12,32.96809981]
[1759137900878,0.7,209.15,209.13,36.64]
[1759137901081,1e-08,209.16,209.14,4.78148608]
[1759137901268,1e-08,209.16,209.08,5.3427873]
[1759137901474,18.22663566,209.16,209.09,4.78262948]
[1759137901680,3.92258995,209.15,209.09,36.64]
[1759137901874,0.7,209.14,209.09,36.64]
[1759137902190,0.7,209.13,209.09,36.64]
[1759137902575,0.7,209.12,209.09,36.64]
[1759137902785,0.7,209.11,209.09,36.64]
[1759137904385,0.7,209.13,209.09,36.64]
[1759137904588,0.7,209.12,209.09,36.64]
[1759137905079,0.7,209.11,209.09,36.64]
[1759137905272,0.7,209.1,209.09,36.64]
[1759137905781,0.7,209.1,209.03,14.58400499]
[1759137906088,26.0,209.11,209.04,36.64]
[1759137906089,0.7,209.09,209.04,36.64]
[1759137906274,0.7,209.08,209.04,36.64]
[1759137906890,0.7,209.07,209.04,36.64]
[1759137907191,0.7,209.09,209.04,41.62373806]
[1759137907566,0.7,209.08,209.04,41.42373806]
[1759137907888,0.7,209.07,209.05,36.64]
[1759137908121,26.0,209.09,209.05,36.64]
[1759137908270,26.0,209.09,209.06,0.2]
[1759137908463,5.48230796,209.11,209.05,36.64]
[1759137908885,4.78230796,209.11,209.05,36.64]
[1759137909100,0.7,209.1,209.06,4.78331579]
[1759137909388,0.7,209.09,209.05,41.42350926]
[1759137910382,34.70532816,209.12,209.06,0.2]
[1759137910886,34.70532816,209.12,209.05,41.42350926]
[1759137911083,0.7,209.11,209.05,41.42350926]
[1759137911296,0.7,209.1,209.05,41.42350926]
[1759137911494,0.7,209.09,209.05,41.42350926]
[1759137913799,26.0,209.1,209.05,41.62350926]
[1759137914002,1.40845169,209.12,209.06,0.2]
[1759137914182,26.0,209.11,209.06,0.2]
[1759137914382,0.69,209.13,209.06,0.2]
[1759137915198,5.47173296,209.13,209.07,4.783087]
[1759137915382,0.69,209.12,209.08,36.64]
[1759137915583,0.69,209.11,209.08,36.64]
[1759137915783,0.69,209.1,209.08,36.64]
[1759137915981,0.69,209.09,209.08,36.64]
[1759137916186,0.69,209.11,209.08,36.64]
[1759137916483,0.69,209.1,209.08,36.64]
[1759137916804,0.69,209.12,209.08,41.42279826]
[1759137918481,3.22332783,209.13,209.08,41.42279826]
[1759137918688,29.22332783,209.14,209.09,0.2]
[1759137918895,26.0,209.14,209.09,0.2]
[1759137919091,3.91332784,209.16,209.09,0.2]
[1759137919292,0.69000001,209.16,209.09,0.2]
[1759137919498,26.69000001,209.16,209.09,0.2]
[1759137920185,26.69000001,209.16,209.11,4.78217206]
[1759137920390,0.69,209.15,209.11,4.78217206]
[1759137920597,0.69,209.14,209.11,4.78217206]
[1759137924711,1e-08,209.16,209.11,4.78217206]
[1759137925025,1e-08,209.16,209.12,0.2]
[1759137925192,1e-08,209.16,209.13,36.64]
[1759137925391,1e-08,209.16,209.14,4.78148608]
[1759137926126,0.70000001,209.16,209.14,4.78148608]
[1759137927428,1e-08,209.16,209.14,4.78148608]
[1759137927594,0.7,209.15,209.13,41.42170959]
[1759137927913,0.7,209.14,209.08,0.2]
[1759137928212,0.7,209.14,209.09,36.64]
[1759137928405,0.7,209.13,209.09,36.64]
[1759137928603,0.7,209.15,209.09,36.84]
[1759137929107,0.7,209.15,209.1,4.78240076]
[1759137929418,1e-08,209.16,209.11,0.2]
[1759137929595,1e-08,209.16,209.12,36.64]
[1759137929796,1e-08,209.16,209.13,13.59559401]
[1759137929992,1e-08,209.16,209.13,13.79559401]
[1759137930218,1e-08,209.16,209.14,0.2]
[1759137930409,1e-08,209.16,209.15,36.64]
[1759137930610,1e-08,209.16,209.15,38.55685636]
[1759137930912,1e-08,209.16,209.15,38.75685636]
[1759137931298,1e-08,209.16,209.15,43.53811383]
[1759137932997,1e-08,209.16,209.15,41.40125747]
[1759137939027,1e-08,209.16,209.15,4.51525747]
[1759137939321,1e-08,209.16,209.15,41.13525747]
[1759137942717,1e-08,209.16,209.15,36.62]
[1759137943809,1e-08,209.16,209.14,4.78148608]
[1759137944135,1e-08,209.16,209.15,36.62]
[1759137945330,1e-08,209.16,209.15,41.40125747]
[1759137948044,1e-08,209.16,209.15,36.62]
[1759137948525,2.9003405,209.16,209.12,4.78190744]
[1759137948730,0.7,209.15,209.13,36.62]
[1759137948919,0.7,209.14,209.13,36.62]
[1759137953836,0.7,209.14,209.09,4.78240169]
[1759137954143,2.92034049,209.13,209.1,36.62]
[1759137954432,0.72,209.12,209.11,36.62]
[1759137956112,0.72,209.12,209.11,41.40217206]
[1759137957738,0.72,209.12,209.11,36.62]
[1759137960419,0.72,209.14,209.11,41.40217083]
[1759137961016,0.72,209.13,209.11,41.40217083]
[1759137961247,26.0,209.14,209.11,41.40217083]
[1759137961431,0.72,209.13,209.11,41.40217083]
[1759137961942,0.72,209.12,209.11,41.40217083]
[1759137962532,26.0,209.14,209.11,41.40217083]
[1759137962840,0.72,209.13,209.11,41.40217083]
[1759137965840,26.0,209.15,209.11,41.40217083]
[1759137966046,0.72,209.14,209.11,41.40217083]
[1759137966247,0.72,209.13,209.11,41.40217083]
[1759137967539,0.72,209.13,209.12,36.62]
[1759137969647,0.72,209.13,209.12,41.40194338]
[1759137970031,26.0,209.14,209.12,41.40194338]
[1759137970232,26.72,209.14,209.12,41.40194338]
[1759137970426,0.72,209.13,209.12,36.62]
[1759137970627,1e-08,209.16,209.12,41.40194338]
[1759137970832,1e-08,209.16,209.13,0.2]
[1759137971139,1e-08,209.16,209.14,36.62]
[1759137971744,1e-08,209.16,209.14,36.82]
[1759137971928,1e-08,209.16,209.14,36.62]
[1759137973162,1e-08,209.16,209.15,4.78125747]
[1759137974945,1e-08,209.16,209.15,4.98125747]
[1759137975550,1e-08,209.16,209.15,4.78125747]
[1759137975854,1e-08,209.16,209.15,4.98125747]
[1759137979669,1e-08,209.16,209.15,18.57685148]
[1759137980459,1e-08,209.16,209.15,20.11069793]
[1759137980662,1e-08,209.19,209.16,13.59559401]
[1759137980865,1e-08,209.19,209.17,36.64]
[1759137981062,1e-08,209.19,209.17,36.84]
[1759137981262,1e-08,209.19,209.18,0.2]
[1759137982141,1e-08,209.19,209.18,20.11001221]
[1759137986166,0.2,209.24,209.18,55.96430038]
[1759137986469,0.2,209.24,209.21,1.53384645]
[1759137986654,0.2,209.24,209.22,36.64]
[1759137987340,0.2,209.24,209.23,4.77942933]
[1759137987544,0.2,209.24,209.23,6.31327578]
[1759137988565,0.2,209.24,209.23,20.9158167]
[1759137988768,1e-08,209.24,209.23,20.9158167]
[1759137989576,1e-08,209.25,209.23,21.1158167]
[1759137989779,0.2,209.3,209.24,50.43559401]
[1759137990080,0.2,209.3,209.26,1.53384645]
[1759137990282,0.2,209.3,209.28,1.53384645]
[1759137990496,0.2,209.3,209.29,36.64]
[1759137990767,0.2,209.3,209.29,41.41805915]
[1759137992572,0.2,209.3,209.29,55.01365316]
[1759137992761,0.2,209.32,209.3,13.59559401]
[1759137993072,0.2,209.32,209.31,36.64]
[1759137994379,1e-08,209.33,209.32,13.59559401]
[1759137994571,1e-08,209.33,209.32,15.12944046]
[1759137995272,1e-08,209.33,209.32,15.32944046]
[1759137995754,1e-08,209.33,209.32,19.90681481]
[1759137996954,1e-08,209.33,209.32,42.9712208]
[1759137997169,1e-08,209.33,209.32,56.56681481]
[1759137998279,1e-08,209.33,209.32,41.43737435]
[1759137998575,0.69000001,209.33,209.32,42.9912208]